Cogmind - Beta 11.1 @@@ ROGUE MODE // 2022.11.06 @ 22:47:30 Player: BRiNK Result: Destroyed self with Grenade Launcher Performance ------------- Evolutions (0) 0 Regions Visited (1) 200 Robots Destroyed (14) 70 Value Destroyed (287) 287 Prototype IDs (0) 0 Alien Tech Used (0) 0 Bonus (0) 0 TOTAL SCORE: 557 Bonus ------- None Cogmind --------- Core Integrity 0/250 Matter 244/300 Energy 99/100 System Corruption 0% Temperature Cool (9) Movement Core (200) Ox3 Location -10/Materials Parts ------- > --- POWER (1) -------- (None) > --- PROPULSION (2) --- (None) > --- UTILITY (2) ------ Small Storage Unit ECM Suite > --- WEAPON (2) ------- Light Assault Rifle Grenade Launcher > --- INVENTORY (8) ---- Medium Laser Small Laser Light Assault Rifle Peak State ------------ > --- POWER ------------ Light Ion Engine > --- PROPULSION ------- Light Treads Light Treads > --- UTILITY ---------- Small Storage Unit ECM Suite > --- WEAPON ----------- Assault Rifle Light Assault Rifle > --- INVENTORY -------- Medium Laser Grenade Launcher [Rating: 7] Favorites ----------- Power Light Ion Engine Engine Light Ion Engine Propulsion Light Treads Treads Light Treads Utility Small Storage Unit Device ECM Suite Storage Small Storage Unit Weapon Light Assault Rifle Ballistic Gun Light Assault Rifle Launcher Grenade Launcher Build | -11 -10 ------- Run | Scr Mat Slots Evolved . | . . Power . | . . Propulsion . | . . Utility . | . . Weapon . | . . Parts Attached 10 | 6 4 Power 2 | 1 1 Engine 2 | 1 1 Core . | . . Reactor . | . . Propulsion 2 | 2 . Treads 2 | 2 . Leg . | . . Wheel . | . . Hover . | . . Flight . | . . Utility 2 | 1 1 Device 1 | . 1 Storage 1 | 1 . Processor . | . . Hackware . | . . Protection . | . . Artifact . | . . Weapon 4 | 2 2 Energy Gun . | . . Energy Cannon . | . . Ballistic Gun 3 | 2 1 Ballistic Cannon . | . . Launcher 1 | . 1 Special Weapon . | . . Impact Weapon . | . . Slashing Weapon . | . . Piercing Weapon . | . . Special Melee Weapon . | . . Unidentified Prototypes . | . . Parts Lost 5 | . 5 Power 2 | . 2 Propulsion 2 | . 2 Utility . | . . Weapon 1 | . 1 Highest Loss Streak 3 | . 3 To Critical Strikes 1 | . 1 Average Slot Usage (%) 88 | . 88 Engine 10 | . 10 Treads 27 | . 27 Device 9 | . 9 Storage 14 | . 14 Ballistic Gun 25 | . 25 Naked Turns . | . . Heaviest Build 13 | 11 13 Greatest Support 40 | 40 40 Greatest Overweight (x) . | . . Average Overweight (x) . | . . Largest Inventory Capacity 8 | 8 8 Average Capacity 7 | 5 8 Most Carried 4 | 3 4 Average Carried 2 | 1 2 Final Capacity 8 | 8 8 Final Carried 3 | 1 3 Class Distribution -------------------- 100% | Mutant Dominant Class ---------------- Mutant | -10/Materials Resources | -11 -10 ----------- Run | Scr Mat Matter Collected 384 | 245 139 Remotely . | . . Salvage Created 358 | . 358 Parts 26 | . 26 Haulers Intercepted . | . . Recyclers Shooed . | . . Parts Field Recycled . | . . Retrieved Matter . | . . Parts Self-Destructed . | . . Prevented . | . . Kills | -11 -10 ------- Run | Scr Mat Combat Hostiles Destroyed 12 | . 12 Guns 10 | . 10 AOE 2 | . 2 Classes Destroyed 3 | . 3 Builder 2 | . 2 Swarmer 6 | . 6 Grunt 6 | . 6 Best Kill Streak 3 | . 3 Combat Bots Only 3 | . 3 Max Kills in Single Turn 2 | . 2 Gunslinging 1 | . 1 Exploded 1 | . 1 Melee . | . . Uniques/NPCs Destroyed . | . . Combat | -11 -10 -------- Run | Scr Mat Damage Taken 850 | . 850 Core 254 | . 254 Absorbed by Shields . | . . Core Remaining (%) 100 | 100 . Volleys Fired 47 | . 47 Largest 2 | . 2 Hottest 50 | . 50 Shots Fired 82 | . 82 Gun 78 | . 78 Cannon . | . . Launcher 4 | . 4 Special . | . . Kinetic 78 | . 78 Thermal . | . . Explosive 4 | . 4 Electromagnetic . | . . Robot Hit Streak 8 | . 8 Robot Miss Streak 3 | . 3 Penetration Max . | . . Secondary Targets 3 | . 3 Max Gunslinging Chain 1 | . 1 Shots Hit Robots 54 | . 54 Core Hits 26 | . 26 Critical Kills . | . . Critical Parts Destroyed . | . . Critical Strikes . | . . Melee Attacks . | . . Impact . | . . Slashing . | . . Piercing . | . . Sneak Attacks . | . . Combat Hostiles . | . . Follow-up Attacks . | . . Damage Inflicted 778 | . 778 Guns 511 | . 511 Cannons . | . . Explosions 261 | . 261 Melee . | . . Ramming 6 | . 6 Kinetic 511 | . 511 Thermal . | . . Explosive 261 | . 261 Electromagnetic . | . . Impact . | . . Slashing . | . . Piercing . | . . Highest Corruption . | . . Average Corruption . | . . Corruption Purged . | . . Corruption Blocked . | . . Overload Shots . | . . Overflow Damage . | . . Projectiles . | . . Explosions . | . . Melee . | . . Knockbacks . | . . Impact . | . . Kinetic . | . . Secondary . | . . Self-Inflicted Damage 94 | . 94 Shots 3 | . 3 Rammed 2 | . 2 Targets Rammed 2 | . 2 Kicked . | . . Crushed . | . . Highest Temperature 18 | . 18 Average Temperature 7 | . 7 Received Heat Transfer 318 | . 318 Siege Activations . | . . Robots Corrupted . | . . Combat Hostiles . | . . Parts Fried . | . . Impact Corruptions . | . . Robots Melted . | . . Combat Hostiles . | . . Parts Melted . | . . Heat Transferred . | . . Parts Sabotaged . | . . Parts Stolen . | . . Parts Stripped . | . . Power Chain Reactions . | . . Missiles Intercepted . | . . Alert | -11 -10 ------- Run | Scr Mat Peak Influence 178 | . 178 Initial . | . . Average 51 | . 58 Maximum Alert Level . | . . Low Security (%) 100 | 100 100 Level 1 . | . . Level 2 . | . . Level 3 . | . . Level 4 . | . . Level 5 . | . . High Security . | . . Max Security . | . . Squads Dispatched 2 | . 2 Investigation 1 | . 1 Extermination . | . . Reinforcement 1 | . 1 Assault . | . . Garrison . | . . Intercept . | . . Searches Triggered . | . . Construction Impeded . | . . Haulers Reinforced . | . . Active Scanning Responses . | . . Cargo Convoy Interrupts . | . . Stealth | -11 -10 --------- Run | Scr Mat Distress Signals . | . . Communications Jammed . | . . Distress Signals . | . . Times Spotted 15 | . 15 Peak Tracking Total 4 | . 4 Tactical Retreats . | . . Traps | -11 -10 ------- Run | Scr Mat Traps Triggered . | . . Indirectly . | . . Trap Hack Attempts . | . . Triggered . | . . Disarmed . | . . Reprogrammed . | . . Reused . | . . Traps Extracted . | . . Installed . | . . Triggered . | . . Machines | -11 -10 ---------- Run | Scr Mat Machines Disabled . | . . Max in Single Turn . | . . Machines Sabotaged . | . . Garrisons Compromised . | . . Overloaded Fab Kills . | . . Hacking | -11 -10 --------- Run | Scr Mat Machines Accessed 3 | . 3 Terminals 3 | . 3 Fabricators . | . . Repair Stations . | . . Recycling Units . | . . Scanalyzers . | . . Garrison Access . | . . Total Hacks 8 | . 8 Successful 1 | . 1 Failed 7 | . 7 Catastrophic 5 | . 5 Database Lockouts . | . . Manual 8 | . 8 Terminals 8 | . 8 Fabricators . | . . Repair Stations . | . . Recycling Units . | . . Scanalyzers . | . . Garrison Access . | . . Terminal Hacks 1 | . 1 Recall Investigation 1 | . 1 Fabricator Hacks . | . . Repair Station Hacks . | . . Recycling Unit Hacks . | . . Scanalyzer . | . . Garrison Access Hacks . | . . Unauthorized Hacks . | . . Terminals . | . . Fabricators . | . . Repair Stations . | . . Recycling Units . | . . Scanalyzers . | . . Garrison Access . | . . Data Cores Recovered . | . . Used . | . . Hacking Detections 3 | . 3 Full Trace Events 1 | . 1 Feedback Events . | . . Feedback Blocked . | . . Robot Schematics Acquired . | . . Robots Built . | . . Authchips . | . . Time . | . . Total Robot Build Rating . | . . Part Schematics Acquired . | . . Parts Built . | . . Authchips . | . . Time . | . . Total Part Build Rating . | . . Parts Repaired . | . . Time . | . . Parts Recycled . | . . Recycled Matter . | . . Retrieved Matter . | . . Retrieved Components . | . . Parts Scanalyzed . | . . Part Schematics Acquired . | . . Parts Damaged . | . . Bothacking | -11 -10 ------------ Run | Scr Mat Used RIF Installer . | . . Robots Hacked . | . . Non-combat . | . . Combat . | . . Robot Hacks Applied . | . . Relay Couplers Released . | . . Fabnet Peak Effective % . | . . Robots Rewired . | . . Allies Hacked . | . . Hacks Repelled . | . . Allies | -11 -10 -------- Run | Scr Mat Total Allies . | . . Largest Group . | . . Highest-Rated Group . | . . Highest-Rated Ally . | . . Total Orders . | . . Ally Attacks . | . . Total Damage . | . . Kills . | . . Allies Corrupted . | . . Allies Melted . | . . Intel | -11 -10 ------- Run | Scr Mat Robot Analysis Total . | . . Derelict Logs Recovered . | . . Drone Launches . | . . Drone Recoveries . | . . Exploration | -11 -10 ------------- Run | Scr Mat Turns Passed 585 | 70 515 Spaces Moved 276 | 39 237 Core 4 | 4 . Treads 272 | 35 237 Legs . | . . Wheels . | . . Hover . | . . Flight . | . . Fastest Speed 50 | 50 160 Average Speed 158 | 148 160 Slowest Speed 160 | 160 160 Overloaded Moves . | . . Propulsion Burnouts . | . . Robots Hopped . | . . Cave-ins Triggered . | . . Exploration Rate (%) 21 | 4 38 Regions Visited 1 Branch Regions . Pre-discovered Areas . | . . Known Exits Taken . | . . Unknown Exits Taken 1 | 1 . Scrap Searched . | . . Spaces Dug . | . . Terrain Destroyed 14 | . 14 Melee . | . . Projectile . | . . AOE 14 | . 14 Terrain Rammed . | . . Walls Destroyed . | . . Machines Disabled . | . . Actions | -11 -10 --------- Run | Scr Mat Total 353 | 51 302 Wait 7 | . 7 Move 275 | 38 237 Hop . | . . Pick Up 12 | 7 5 Fast Attach . | . . Attach 9 | 6 3 Detach . | . . Swap 1 | . 1 Drop . | . . Fire 47 | . 47 Melee . | . . Ram . | . . Kick . | . . Crush 2 | . 2 Escape Stasis . | . . Rewire . | . . Trap . | . . Miscellaneous . | . . Route ------- -11/Scrapyard -10/Materials (discovered 1 exit: [*Min]) History --------- Turn | Location | Event 2 | -11/Scrapyard | Met Revision 17 14 | -11/Scrapyard | Discovered new exit (range 16) 71 | -11/Scrapyard | Entered Materials 318 | -10/Materials | Build established: Mutant 483 | -10/Materials | Core integrity fell below 50% 555 | -10/Materials | Discovered new exit (range 8) 565 | -10/Materials | Core integrity fell below 20% 586 | -10/Materials | Destroyed self with Grenade Launcher Last Messages --------------- 00486_ Acquired 1 matter. 00486_ K-01 Serf cleans the Nuclear Reactor. 00490_ K-01 Serf collects debris. 00517_ K-01 Serf cleans the Nuclear Reactor. 00521_ Slammed into K-01 Serf. 00546_ Lgt. Ion Engine destroyed. 00555_ EXIT=FOUND 00558_ Lgt. Treads destroyed. 00565_ Slammed into A-02 Transporter. 00570_ Connecting with Terminal... 00570_ ALERT: Suspicious activity at Terminal M007. Dispatching Investigation squad. 00576_ Terminal disabled. 00578_ G-34 Mercenary destroyed. 00582_ Lgt. Treads destroyed. 00583_ U-05 Engineer lays Concrete. 00585_ U-05 Engineer builds a Wall. 00586_ U-05 Engineer lays Concrete. 00586_ G-47 Trooper destroyed. 00586_ U-05 Engineer destroyed. Map ----- +----------------------------------------------------+ | #??# #?????????# #??????????????????????? | | #??# #?????????# #??????????????????????? | | #??# "T" #?????????# #??????????????????????? | | #??# ########### #??????????????????????? | | #######+##### # #??????????????????????? | | + * # ######?????????????????? | | % #### [%* # #?????????????????? | | " #??# """=""" + #?????????????????? | | # T #??# """%""" # + "???????????????? | | # " #??# """=""" # # ????????????????? | | # #??# [% #%#### ##????????????????? | | # #??# # #" #????????????????? | | # """ #??##+######## #"" #????????????????? | | # """ #???# #??????# #!! a #????????????????? | | # """ #???# #??????# #?" < #????????????????? | | # #???# #??????# #?! u #????????????????? | | # #???# #??????# #?? #????????????????? | | # !! #???# #??????# #?? #????????????????? | | # !! ##### ######## ### #????????????????? | | [% t w #????????????????? | | * % #????????????????? | | !% a ###??????????????? | | ###################### # [ ???????????????? | | #############?????# #??????#??????????? | | # #?????# " # #??????????? | | # """ #?????# ^ @ %r + +??????????? | | # """"" #?????# # #??????????? | | + """"" #?????# ^ = #??????#??????????? | | # """"" #?????# #%* #?????????????????? | | # """ #?????########! k#?????????????????? | | # #????????????# +?????????????????? | | #############????????????# #?????????????????? | | # #???????????????# #?????????????????? | | # """" #???????????????# #?????????????????? | | # """" #???????????????# #?????????????????? | | # """" #??????????????? #?????????????????? | | + #??????????????? #?????????????????? | | # """" #??????????????? #?????????????????? | | # """" #???????????????##+##?????????????????? | | # """" #?????????????????????????????????????? | | ### #?????????????????????????????????????? | | ??##########?????????????????????????????????????? | | ?????????????????????????????????????????????????? | | ?????????????????????????????????????????????????? | | ?????????????????????????????????????????????????? | | ?????????????????????????????????????????????????? | | ?????????????????????????????????????????????????? | | ?????????????????????????????????????????????????? | | ?????????????????????????????????????????????????? | | ?????????????????????????????????????????????????? | +----------------------------------------------------+ Best States ------------- Heat Dissipation 25 Energy Generation 10 Energy Capacity 125 Matter Stores 300 Matter Capacity 300 Sight Range 16 Terrain Scan Density 10 ECM Strength 1 Evasion (%) 40 Recoil Reduction 2 Item Schematics ----------------- None Robot Schematics ------------------ None Fabricated ------------ Nothing Alien Tech Used ----------------- None Achievements -------------- None Challenges ------------ None Game ------ Seed ChainGravitonLaser Manual? 0 Play Time 00:08:13 Cumulative 13.5 hours Start 2022.11.06 @ 22:41:23 End 2022.11.06 @ 22:47:30 Sessions 1 Manual Loads 0 Difficulty Rogue Special Mode None Game No. 20 Rogue 20 Adventurer 0 Explorer 0 Win Type - Total 0 Types 0/0/0/0/0/0/0/0/0 Lore% 16 Gallery% 16 Achievement% 14 Wizard Run 0 Options --------- ASCII 0 Keyboard 0 Movement Mouse Keybinds 0 Fullscreen 1 Font 24/Crisp Map View 76x50 Tactical HUD 1 Map Filters NONE Filters NONE Steam 1 RUN: 97fbfd6e-9d24-42bc-a8db-c805afee4675